fUST/lending_fUST_20240922
["ID","MTS","AMOUNT","RATE_DAILY","PERIOD"]
[338848624,1726942252728,-500.0,0.00014396,2]
[338848625,1726942252738,-500.0,0.00014396,2]
[338848626,1726942252748,-500.0,0.00014396,2]
[338848627,1726942252759,-176.49,0.00014396,2]
[338848628,1726942252769,-500.0,0.00014396,2]
[338848629,1726942252778,-500.0,0.00014396,2]
[338848630,1726942252787,-500.0,0.00014396,2]
[338848631,1726942252797,-500.0,0.00014396,2]
[338848632,1726942252810,-151.0,0.00014396,2]
[338848633,1726942252820,-518.75003145,0.00014396,2]
[338848634,1726942252832,-151.0,0.00014396,2]
[338848635,1726942252842,-500.0,0.00014396,2]
[338848636,1726942252853,-500.0,0.00014396,2]
[338848637,1726942252862,-500.0,0.00014396,2]
[338848638,1726942252871,-500.0,0.00014396,2]
[338848639,1726942252880,-410.96,0.00014396,2]
[338848640,1726942252890,-639.55645757,0.00014396,2]
[338848641,1726942252899,-502.30677793,0.00014396,2]
[338848642,1726942252909,-500.0,0.00014396,2]
[338848643,1726942252919,-502.70761251,0.00014396,2]
[338848644,1726942252928,-500.0,0.00014396,2]
[338848645,1726942252939,-500.0,0.00014396,2]
[338848646,1726942252950,-500.0,0.00014396,2]
[338848647,1726942252960,-455.814143,0.00014396,2]
[338848648,1726942252969,-158.935374,0.00014396,2]
[338848649,1726942252978,-455.814143,0.00014396,2]
[338848650,1726942252989,-158.935374,0.00014396,2]
[338848651,1726942253000,-660.684835,0.00014396,2]
[338848652,1726942253010,-660.684835,0.00014396,2]
[338848653,1726942253020,-151.0,0.00014396,2]
[338848654,1726942253030,-151.0,0.00014396,2]
[338848655,1726942253041,-151.0,0.00014396,2]
[338848656,1726942253051,-151.0,0.00014396,2]
[338848657,1726942253061,-151.0,0.00014396,2]
[338848658,1726942253070,-151.0,0.00014396,2]
[338848659,1726942253079,-992.983202,0.00014396,2]
[338848660,1726942253089,-992.983202,0.00014396,2]
[338848661,1726942253099,-652.776506,0.00014396,2]
[338848662,1726942253108,-261.621498,0.00014396,2]
[338848663,1726942253118,-1052.877842,0.00014396,2]
[338848664,1726942253127,-873.225765,0.00014396,2]
[338848665,1726942253136,-652.776506,0.00014396,2]
[338848666,1726942253145,-261.621498,0.00014396,2]
[338848667,1726942253155,-1052.877842,0.00014396,2]
[338848668,1726942253164,-873.225765,0.00014396,2]
[338848669,1726942253173,-206.305387,0.00014396,2]
[338848670,1726942253182,-206.305387,0.00014396,2]
[338848671,1726942253192,-151.0,0.00014396,2]
[338848672,1726942253201,-151.0,0.00014396,2]
[338848673,1726942253210,-151.0,0.00014396,2]
[338848674,1726942253219,-151.0,0.00014396,2]
[338848675,1726942253229,-186.886306,0.00014396,2]
[338848676,1726942253239,-151.0,0.00014396,2]
[338848677,1726942253250,-186.886306,0.00014396,2]
[338848678,1726942253261,-770.076405,0.00014396,2]
[338848679,1726942253270,-814.651206,0.00014396,2]
[338848680,1726942253279,-770.076405,0.00014396,2]
[338848681,1726942253289,-814.651206,0.00014396,2]
[338848682,1726942253298,-1489.465888,0.00014396,2]
[338848683,1726942253307,-151.0,0.00014396,2]
[338848684,1726942253316,-1489.465888,0.00014396,2]
[338848685,1726942253325,-433.563241,0.00014396,2]
[338848686,1726942253335,-433.563241,0.00014396,2]
[338848687,1726942253344,-151.0,0.00014396,2]
[338848688,1726942253353,-257.20803,0.00014396,2]
[338848689,1726942253362,-373.834828,0.00014396,2]
[338848690,1726942253372,-257.20803,0.00014396,2]
[338848691,1726942253381,-373.834828,0.00014396,2]
[338848692,1726942253390,-830.806955,0.00014396,2]
[338848693,1726942253400,-830.806955,0.00014396,2]
[338848694,1726942253409,-639.548412,0.00014396,2]
[338848695,1726942253418,-156.338537,0.00014397,2]
[338848696,1726942253427,-500.0,0.00014397,2]
[338848697,1726942253437,-501.02762435,0.00014397,2]
[338848698,1726942253447,-501.70826868,0.00014397,2]
[338848699,1726942253456,-500.0,0.00014397,2]
[338848700,1726942253466,-151.0,0.00014397,2]
[338848701,1726942253476,-500.0,0.00014397,2]
[338848702,1726942253485,-500.0,0.00014397,2]
[338848703,1726942253494,-502.65638944,0.00014397,2]
[338848704,1726942253504,-500.0,0.00014397,2]
[338848705,1726942253513,-151.0,0.00014397,2]
[338848706,1726942253523,-500.0,0.00014397,2]
[338848707,1726942253532,-500.0,0.00014397,2]
[338848708,1726942253542,-608.98755926,0.00014397,2]
[338848709,1726942253551,-151.0,0.00014397,2]
[338848710,1726942253560,-151.0,0.00014397,2]
[338848711,1726942253569,-151.0,0.00014397,2]
[338848712,1726942253579,-841.440131,0.00014397,2]
[338848713,1726942253588,-841.440131,0.00014397,2]
[338848714,1726942253598,-151.0,0.00014397,2]
[338848715,1726942253607,-151.0,0.00014397,2]
[338848716,1726942253616,-151.0,0.00014397,2]
[338848717,1726942253626,-616.129519,0.00014397,2]
[338848718,1726942253637,-616.129519,0.00014397,2]
[338848719,1726942253646,-270.133595,0.00014397,2]
[338848720,1726942253656,-270.133595,0.00014397,2]
[338848721,1726942253665,-178.31883,0.00014397,2]
[338848722,1726942253675,-178.31883,0.00014397,2]
[338848723,1726942253684,-151.0,0.00014397,2]
[338848724,1726942253694,-258.437287,0.00014397,2]
[338848725,1726942253704,-258.437287,0.00014397,2]
[338848726,1726942253715,-373.834828,0.00014397,2]
[338848727,1726942253725,-373.834828,0.00014397,2]
[338848728,1726942253737,-830.806955,0.00014397,2]
[338848729,1726942253747,-830.806955,0.00014397,2]
[338848730,1726942253757,-639.548412,0.00014397,2]
[338848731,1726942253767,-150.112233,0.000144,2]
[338848732,1726942253776,-150.112235,0.000144,2]
[338848733,1726942253788,-150.112233,0.000144,2]
[338848734,1726942253798,-314.6484823,0.000144,2]
[338848735,1726942253807,-153.1755406,0.000144,2]
[338848736,1726942253816,-150.112233,0.000144,2]
[338848737,1726942253826,-219.42990979,0.00014403,2]
[338848738,1726942253835,-306.659354,0.00014414,2]
[338848739,1726942253845,-600.0,0.00014445,2]
[338848740,1726942253855,-40608.05558593,0.00014478,3]
[338848741,1726942253864,-151.0,0.00014478,2]
[338848742,1726942253873,-151.0,0.00014478,2]
[338848743,1726942253882,-151.0,0.00014478,2]
[338848744,1726942253891,-533.756075,0.00014478,2]
[338848745,1726942253900,-63.66742325,0.00014478,2]
[338848746,1726942254490,-500.0,0.00014088,2]
[338848747,1726942254500,-500.0,0.00014097,2]
[338848748,1726942254510,-500.0,0.00014097,2]
[338848749,1726942254519,-639.548412,0.00014124,2]
[338848750,1726942254529,-500.0,0.00014371,2]
[338848751,1726942254538,-639.548412,0.00014371,2]
[338848752,1726942254547,-500.0,0.00014373,2]
[338848753,1726942254557,-639.548412,0.00014396,2]
[338848754,1726942254566,-639.548412,0.00014397,2]
[338848755,1726942254575,-470.08865175,0.00014478,2]
[338848756,1726942254585,-151.0,0.00014478,2]
[338848757,1726942254594,-1861.587477,0.00014478,2]
[338848758,1726942254604,-1861.587477,0.00014478,2]
[338848759,1726942254614,-4725.187342,0.00014478,2]
[338848760,1726942254623,-4725.187342,0.00014478,2]
[338848761,1726942254635,-151.0,0.00014498,2]
[338848762,1726942254644,-151.0,0.00014498,2]
[338848763,1726942254653,-151.0,0.00014498,2]
[338848764,1726942254662,-151.0,0.00014498,2]
[338848765,1726942254671,-158.935374,0.00014498,2]
[338848766,1726942254681,-158.935374,0.00014498,2]
[338848767,1726942254690,-90400.5007785,0.000145,3]
[338848768,1726942254700,-150.112233,0.000145,2]
[338848769,1726942254712,-153.0,0.000145,2]
[338848770,1726942254721,-153.0,0.000145,2]
[338848771,1726942254732,-153.0,0.000145,2]
[338848772,1726942254742,-306.0,0.000145,2]
[338848773,1726942254752,-306.0,0.000145,2]
[338848774,1726942254761,-151.0,0.000145,2]
[338848775,1726942254771,-151.0,0.000145,2]
[338848776,1726942254780,-151.0,0.000145,2]
[338848777,1726942254791,-841.440131,0.000145,2]
[338848778,1726942254803,-841.440131,0.000145,2]
[338848779,1726942254814,-153.0,0.000145,2]
[338848780,1726942254825,-153.0,0.000145,2]
[338848781,1726942254836,-153.0,0.000145,2]
[338848782,1726942254849,-306.0,0.000145,2]
[338848783,1726942254858,-411.7313822,0.000145,2]
[338848784,1726942254868,-153.0,0.000145,2]
[338848785,1726942254878,-411.7313822,0.000145,2]
[338848786,1726942254887,-153.0,0.000145,2]
[338848787,1726942254896,-153.0,0.000145,2]
[338848788,1726942254906,-150.0,0.000145,2]
[338848789,1726942254916,-411.7313822,0.000145,2]
[338848790,1726942254926,-456.3099631,0.000145,2]
[338848791,1726942254935,-306.0,0.000145,2]
[338848792,1726942254945,-153.0,0.000145,2]
[338848793,1726942254954,-26314.53467876,0.000145,2]
[338848794,1726942254964,-151.0,0.000145,2]
[338848795,1726942254974,-151.0,0.000145,2]
[338848796,1726942254984,-151.0,0.000145,2]
[338848797,1726942254993,-183.186438,0.000145,2]
[338848798,1726942255003,-261.621498,0.000145,2]
[338848799,1726942255013,-873.225765,0.000145,2]
[338848800,1726942255023,-1052.877842,0.000145,2]
[338848801,1726942255035,-261.621498,0.000145,2]
[338848802,1726942255046,-1052.877842,0.000145,2]
[338848803,1726942255055,-873.225765,0.000145,2]
[338848804,1726942255066,-206.305387,0.000145,2]
[338848805,1726942255075,-206.305387,0.000145,2]
[338848806,1726942255084,-151.0,0.000145,2]
[338848807,1726942255095,-151.0,0.000145,2]
[338848808,1726942255105,-151.0,0.000145,2]
[338848809,1726942255115,-151.0,0.000145,2]
[338848810,1726942255124,-186.886306,0.000145,2]
[338848811,1726942255133,-151.0,0.000145,2]
[338848812,1726942255143,-186.886306,0.000145,2]
[338848813,1726942255152,-814.651206,0.000145,2]
[338848814,1726942255161,-814.651206,0.000145,2]
[338848815,1726942255170,-1489.465888,0.000145,2]
[338848816,1726942255180,-151.0,0.000145,2]
[338848817,1726942255189,-1489.465888,0.000145,2]
[338848818,1726942255199,-433.563241,0.000145,2]
[338848819,1726942255208,-433.563241,0.000145,2]
[338848820,1726942255217,-151.0,0.000145,2]
[338848821,1726942255226,-257.20803,0.000145,2]
[338848822,1726942255236,-257.20803,0.000145,2]
[338848823,1726942255246,-151.0,0.00014509,2]
[338848824,1726942255256,-151.0,0.00014509,2]
[338848825,1726942255265,-151.0,0.00014509,2]
[338848826,1726942255275,-270.133595,0.00014509,2]
[338848827,1726942255284,-270.133595,0.00014509,2]
[338848828,1726942255294,-151.0,0.00014509,2]
[338848829,1726942255304,-151.0,0.00014509,2]
[338848830,1726942255314,-151.0,0.00014509,2]
[338848831,1726942255323,-533.756075,0.00014509,2]
[338848832,1726942255333,-533.756075,0.00014509,2]
[338848833,1726942255343,-151.0,0.00014509,2]
[338848834,1726942255353,-151.0,0.00014509,2]
[338848835,1726942255362,-1861.587477,0.00014509,2]
[338848836,1726942255372,-1861.587477,0.00014509,2]
[338848837,1726942255381,-4725.187342,0.00014509,2]
[338848838,1726942255391,-4725.187342,0.00014509,2]
[338848839,1726942255402,-992.983202,0.00014509,2]
[338848840,1726942255413,-992.983202,0.00014509,2]
[338848841,1726942255424,-235.74237596,0.00014518,2]
[338848842,1726942255434,-6860.16551246,0.00014518,2]
[338848843,1726942255444,-616.129519,0.00014518,2]
[338848844,1726942255453,-616.129519,0.00014518,2]
[338848845,1726942255462,-186.99202,0.00014518,2]
[338848846,1726942255473,-186.99202,0.00014518,2]
[338848847,1726942255482,-151.0,0.00014518,2]
[338848848,1726942255491,-234.421176,0.00014518,2]
[338848849,1726942255501,-151.0,0.00014518,2]
[338848850,1726942255511,-151.0,0.00014518,2]
[338848851,1726942255522,-151.0,0.00014518,2]
[338848852,1726942255532,-151.0,0.00014518,2]
[338848853,1726942255542,-455.814143,0.00014518,2]
[338848854,1726942255553,-455.814143,0.00014518,2]
[338848855,1726942255563,-660.684835,0.00014518,2]
[338848856,1726942255573,-660.684835,0.00014518,2]
[338848857,1726942255582,-652.776506,0.00014518,2]
[338848858,1726942255592,-652.776506,0.00014518,2]
[338848859,1726942255601,-770.076405,0.00014518,2]
[338848860,1726942255610,-770.076405,0.00014518,2]
[338848861,1726942255620,-151.0,0.00014541,2]
[338848862,1726942255630,-151.0,0.00014541,2]
[338848863,1726942255643,-151.0,0.00014541,2]
[338848864,1726942255651,-254.475687,0.00014541,2]
[338848865,1726942255661,-254.475687,0.00014541,2]
[338848866,1726942255670,-151.0,0.00014541,2]
[338848867,1726942255680,-600.0,0.00014578,2]
[338848868,1726942255689,-600.0,0.00014578,2]
[338848869,1726942255699,-600.0,0.00014623,2]
[338848870,1726942255708,-624.65,0.00014636,2]
[338848871,1726942255718,-500.0,0.00014636,2]
[338848872,1726942255727,-502.27,0.00014636,2]
[338848873,1726942255736,-866.05,0.00014636,2]
[338848874,1726942255746,-500.0,0.00014636,2]
[338848875,1726942255755,-500.0,0.00014636,2]
[338848876,1726942255764,-500.0,0.00014636,2]
[338848877,1726942255774,-500.0,0.00014636,2]
[338848878,1726942255783,-626.57,0.00014636,2]
[338848879,1726942255793,-729.12,0.00014636,2]
[338848880,1726942255802,-500.0,0.00014636,2]
[338848881,1726942255812,-500.0,0.00014636,2]
[338848882,1726942255821,-500.0,0.00014636,2]
[338848883,1726942255831,-500.0,0.00014636,2]
[338848884,1726942255843,-29418.02,0.00014636,2]
[338848885,1726942255853,-500.0,0.00014636,2]
[338848886,1726942255862,-500.0,0.00014645,2]
[338848887,1726942255871,-501.93581551,0.00014645,2]
[338848888,1726942255881,-150.0,0.00014645,2]
[338848889,1726942255890,-500.0,0.00014645,2]
[338848890,1726942255899,-462.3874757,0.00014645,2]
[338848891,1726942255909,-500.0,0.00014645,2]
[338848892,1726942255918,-500.0,0.00014645,2]
[338848893,1726942255927,-500.0,0.00014645,2]
[338848894,1726942255937,-500.0,0.00014645,2]
[338848895,1726942255946,-500.0,0.00014645,2]
[338848896,1726942255955,-500.0,0.00014645,2]
[338848897,1726942255965,-500.0,0.00014645,2]
[338848898,1726942255973,-500.0,0.00014645,2]
[338848899,1726942255982,-225.13109119,0.00014645,2]
[338848900,1726942255991,-500.0,0.00014645,2]
[338848901,1726942256000,-156.1735918,0.00014645,2]
[338848902,1726942256009,-500.0,0.00014645,2]
[338848903,1726942256018,-720.97,0.00014645,2]
[338848904,1726942256028,-500.0,0.00014645,2]
[338848905,1726942256037,-500.0,0.00014645,2]
[338848906,1726942256046,-500.0,0.00014645,2]
[338848907,1726942256055,-613.28,0.00014645,2]
[338848908,1726942256066,-500.0,0.00014645,2]
[338848909,1726942256075,-365.47982997,0.00014645,2]
[338848910,1726942256084,-500.0,0.00014645,2]
[338848911,1726942256094,-500.0,0.00014645,2]
[338848912,1726942256103,-500.0,0.00014645,2]
[338848913,1726942256112,-500.0,0.00014645,2]
[338848914,1726942256124,-456.52126008,0.00014645,2]
[338848915,1726942256134,-772.47,0.00014645,2]
[338848916,1726942256144,-534.0267251,0.00014645,2]
[338848917,1726942256153,-500.0,0.00014645,2]
[338848918,1726942256162,-926.97,0.00014645,2]
[338848919,1726942256172,-500.0,0.00014645,2]
[338848920,1726942256181,-381.89028012,0.00014645,2]
[338848921,1726942256191,-500.0,0.00014645,2]
[338848922,1726942256200,-500.0,0.00014645,2]
[338848923,1726942256209,-500.0,0.00014645,2]
[338848924,1726942256218,-500.0,0.00014645,2]
[338848925,1726942256228,-500.0,0.00014645,2]
[338848926,1726942256237,-500.0,0.00014645,2]
[338848927,1726942256247,-540.12589357,0.00014645,2]
[338848928,1726942256257,-500.0,0.00014645,2]
[338848929,1726942256267,-346.03,0.00014645,2]
[338848930,1726942256276,-532.88605961,0.00014645,2]
[338848931,1726942256285,-245.47937963,0.00014645,2]
[338848932,1726942256294,-500.0,0.00014645,2]
[338848933,1726942256304,-172.52572671,0.00014645,2]
[338848934,1726942256312,-500.0,0.00014645,2]
[338848935,1726942256322,-500.0,0.00014645,2]
[338848936,1726942256331,-500.0,0.00014645,2]
[338848937,1726942256339,-500.0,0.00014645,2]
[338848938,1726942256348,-500.0,0.00014645,2]
[338848939,1726942256357,-500.0,0.00014645,2]
[338848940,1726942256367,-500.0,0.00014645,2]
[338848941,1726942256376,-500.0,0.00014645,2]
[338848942,1726942256385,-500.0,0.00014645,2]
[338848943,1726942256394,-500.0,0.00014645,2]
[338848944,1726942256403,-197.73339282,0.00014645,2]
[338848945,1726942256412,-500.0,0.00014645,2]
[338848946,1726942256421,-500.0,0.00014645,2]
[338848947,1726942256430,-289.4940006,0.00014645,2]
[338848948,1726942256439,-153.83817575,0.00014645,2]
[338848949,1726942256450,-500.0,0.00014645,2]
[338848950,1726942256459,-709.73,0.00014645,2]
[338848951,1726942256468,-500.0,0.00014645,2]
[338848952,1726942256478,-500.0,0.00014645,2]
[338848953,1726942256488,-500.0,0.00014645,2]
[338848954,1726942256497,-500.0,0.00014645,2]
[338848955,1726942256506,-500.0,0.00014645,2]
[338848956,1726942256515,-500.0,0.00014645,2]
[338848957,1726942256524,-500.0,0.00014645,2]
[338848958,1726942256534,-500.0,0.00014645,2]
[338848959,1726942256543,-500.0,0.00014645,2]
[338848960,1726942256552,-500.0,0.00014645,2]
[338848961,1726942256561,-500.0,0.00014645,2]
[338848962,1726942256570,-500.0,0.00014645,2]
[338848963,1726942256580,-500.0,0.00014645,2]
[338848964,1726942256589,-504.77628237,0.00014645,2]
[338848965,1726942256599,-500.0,0.00014645,2]
[338848966,1726942256610,-500.0,0.00014645,2]
[338848967,1726942256620,-500.0,0.00014645,2]
[338848968,1726942256630,-500.0,0.00014645,2]
[338848969,1726942256643,-500.0,0.00014645,2]
[338848970,1726942256652,-500.0,0.00014645,2]
[338848971,1726942256662,-500.0,0.00014645,2]
[338848972,1726942256671,-500.0,0.00014645,2]
[338848973,1726942256681,-500.0,0.00014645,2]
[338848974,1726942256690,-500.0,0.00014645,2]
[338848975,1726942256700,-446.71,0.00014645,2]
[338848976,1726942256711,-500.0,0.00014645,2]
[338848977,1726942256721,-500.0,0.00014645,2]
[338848978,1726942256730,-964.51,0.00014645,2]
[338848979,1726942256739,-500.0,0.00014645,2]
[338848980,1726942256749,-500.0,0.00014645,2]
[338848981,1726942256758,-500.0,0.00014645,2]
[338848982,1726942256767,-500.0,0.00014645,2]
[338848983,1726942256776,-500.0,0.00014645,2]
[338848984,1726942256786,-500.0,0.00014645,2]
[338848985,1726942256795,-500.0,0.00014645,2]
[338848986,1726942256805,-500.0,0.00014645,2]
[338848987,1726942256817,-500.0,0.00014645,2]
[338848988,1726942256827,-500.0,0.00014645,2]
[338848989,1726942256837,-500.0,0.00014645,2]
[338848990,1726942256846,-500.0,0.00014645,2]
[338848991,1726942256856,-500.0,0.00014645,2]
[338848992,1726942256867,-500.0,0.00014645,2]
[338848993,1726942256877,-1052.877842,0.00014645,2]
[338848994,1726942256887,-500.0,0.00014645,2]
[338848995,1726942256896,-1144.77,0.00014645,2]
[338848996,1726942256905,-542.91417884,0.00014645,2]
[338848997,1726942256915,-1052.877842,0.00014645,2]
[338848998,1726942256924,-500.0,0.00014645,2]
[338848999,1726942256934,-206.305387,0.00014645,2]
[338849000,1726942256943,-500.0,0.00014645,2]
[338849001,1726942256954,-1054.32,0.00014645,2]
[338849002,1726942256963,-206.305387,0.00014645,2]
[338849003,1726942256972,-500.0,0.00014645,2]
[338849004,1726942256981,-500.0,0.00014645,2]
[338849005,1726942256990,-500.0,0.00014645,2]
[338849006,1726942256999,-151.0,0.00014645,2]
[338849007,1726942257008,-500.0,0.00014645,2]
[338849008,1726942257017,-298.704698,0.00014645,2]
[338849009,1726942257026,-500.0,0.00014645,2]
[338849010,1726942257035,-500.0,0.00014645,2]
[338849011,1726942257044,-500.0,0.00014645,2]
[338849012,1726942257054,-500.0,0.00014645,2]
[338849013,1726942257063,-151.0,0.00014645,2]
[338849014,1726942257072,-500.0,0.00014645,2]
[338849015,1726942257082,-763.71,0.00014645,2]
[338849016,1726942257091,-500.0,0.00014645,2]
[338849017,1726942257100,-186.886306,0.00014645,2]
[338849018,1726942257237,-500.0,0.00014645,2]
[338849019,1726942257246,-500.0,0.00014645,2]
[338849020,1726942257256,-500.0,0.00014645,2]
[338849021,1726942257265,-186.886306,0.00014645,2]
[338849022,1726942257274,-500.0,0.00014645,2]
[338849023,1726942257284,-500.0,0.00014645,2]
[338849024,1726942257293,-500.0,0.00014645,2]
[338849025,1726942257302,-500.0,0.00014645,2]
[338849026,1726942257311,-814.651206,0.00014645,2]
[338849027,1726942257321,-262.91933616,0.00014645,2]
[338849028,1726942257330,-500.0,0.00014645,2]
[338849029,1726942257339,-500.0,0.00014645,2]
[338849030,1726942257349,-814.651206,0.00014645,2]
[338849031,1726942257358,-710.38,0.00014645,2]
[338849032,1726942257367,-500.0,0.00014645,2]
[338849033,1726942257376,-500.0,0.00014645,2]
[338849034,1726942257385,-507.72725761,0.00014645,2]
[338849035,1726942257394,-501.64530418,0.00014645,2]
[338849036,1726942257403,-500.0,0.00014645,2]
[338849037,1726942257413,-500.0,0.00014645,2]
[338849038,1726942257422,-500.0,0.00014645,2]
[338849039,1726942257430,-500.0,0.00014645,2]
[338849040,1726942257441,-1489.465888,0.00014645,2]
[338849041,1726942257451,-500.0,0.00014645,2]
[338849042,1726942257460,-502.69558048,0.00014645,2]
[338849043,1726942257469,-151.0,0.00014645,2]
[338849044,1726942257478,-1489.465888,0.00014645,2]
[338849045,1726942257487,-500.0,0.00014645,2]
[338849046,1726942257496,-433.563241,0.00014645,2]
[338849047,1726942257505,-500.0,0.00014645,2]
[338849048,1726942257515,-453.48,0.00014645,2]
[338849049,1726942257523,-500.0,0.00014645,2]
[338849050,1726942257533,-433.563241,0.00014645,2]
[338849051,1726942257542,-500.0,0.00014645,2]
[338849052,1726942257551,-500.0,0.00014645,2]
[338849053,1726942257560,-462.56920989,0.00014645,2]
[338849054,1726942257570,-500.0,0.00014645,2]
[338849055,1726942257580,-500.0,0.00014645,2]
[338849056,1726942257589,-151.0,0.00014645,2]
[338849057,1726942257599,-541.77829778,0.00014645,2]
[338849058,1726942257608,-500.0,0.00014645,2]
[338849059,1726942257617,-500.0,0.00014645,2]
[338849060,1726942257627,-500.0,0.00014645,2]
[338849061,1726942257642,-500.0,0.00014645,2]
[338849062,1726942257652,-500.0,0.00014645,2]
[338849063,1726942257662,-500.0,0.00014645,2]
[338849064,1726942257671,-500.0,0.00014645,2]
[338849065,1726942257680,-1671.09,0.00014645,2]
[338849066,1726942257691,-500.0,0.00014645,2]
[338849067,1726942257700,-500.0,0.00014645,2]
[338849068,1726942257710,-545.76,0.00014645,2]
[338849069,1726942257721,-500.0,0.00014645,2]
[338849070,1726942257731,-500.0,0.00014645,2]
[338849071,1726942257740,-509.71889624,0.00014645,2]
[338849072,1726942257749,-500.0,0.00014645,2]
[338849073,1726942257759,-500.0,0.00014645,2]
[338849074,1726942257768,-382.57,0.00014645,2]
[338849075,1726942257778,-500.0,0.00014645,2]
[338849076,1726942257788,-567.24,0.00014645,2]
[338849077,1726942257797,-500.0,0.00014645,2]
[338849078,1726942257806,-500.0,0.00014645,2]
[338849079,1726942257816,-500.0,0.00014645,2]
[338849080,1726942257825,-257.20803,0.00014645,2]
[338849081,1726942257834,-373.834828,0.00014645,2]
[338849082,1726942257844,-500.0,0.00014645,2]
[338849083,1726942257854,-500.0,0.00014645,2]
[338849084,1726942257863,-257.20803,0.00014645,2]
[338849085,1726942257873,-373.834828,0.00014645,2]
[338849086,1726942257882,-500.0,0.00014645,2]
[338849087,1726942257892,-830.806955,0.00014645,2]
[338849088,1726942257901,-500.0,0.00014645,2]
[338849089,1726942257912,-165.58666057,0.00014645,2]
[338849090,1726942257922,-500.0,0.00014645,2]
[338849091,1726942257931,-500.0,0.00014645,2]
[338849092,1726942257941,-830.806955,0.00014645,2]
[338849093,1726942257950,-639.548412,0.00014645,2]
[338849094,1726942257963,-639.548412,0.00014645,2]
[338849095,1726942257973,-178.31883,0.00014646,2]
[338849096,1726942257982,-178.31883,0.00014646,2]
[338849097,1726942257991,-151.0,0.00014646,2]
[338849098,1726942258002,-186.99202,0.00014646,2]
[338849099,1726942258011,-186.99202,0.00014646,2]
[338849100,1726942258020,-151.0,0.00014646,2]
[338849101,1726942258030,-151.0,0.00014646,2]
[338849102,1726942258039,-151.0,0.00014646,2]
[338849103,1726942258047,-151.0,0.00014646,2]
[338849104,1726942258056,-151.0,0.00014646,2]
[338849105,1726942258066,-258.437287,0.00014646,2]
[338849106,1726942258074,-258.437287,0.00014646,2]
[338849107,1726942258083,-455.814143,0.00014646,2]
[338849108,1726942258093,-455.814143,0.00014646,2]
[338849109,1726942258103,-660.684835,0.00014646,2]
[338849110,1726942258112,-660.684835,0.00014646,2]
[338849111,1726942258123,-652.776506,0.00014646,2]
[338849112,1726942258133,-652.776506,0.00014646,2]
[338849113,1726942258144,-770.076405,0.00014646,2]
[338849114,1726942258155,-770.076405,0.00014646,2]
[338849115,1726942258165,-500.0,0.00014647,2]
[338849116,1726942258174,-500.0,0.00014647,2]
[338849117,1726942258184,-500.0,0.00014647,2]
[338849118,1726942258193,-500.0,0.00014647,2]
[338849119,1726942258207,-500.0,0.00014647,2]
[338849120,1726942258217,-785.94,0.00014647,2]
[338849121,1726942258231,-500.0,0.00014647,2]
[338849122,1726942258242,-500.0,0.00014647,2]
[338849123,1726942258252,-500.0,0.00014647,2]